[Event "1st Sakatam Open 2024"]
[Site "Guwahati"]
[Date "2024.03.28"]
[Round "10.3"]
[White "Tanmay Rajbongshi"]
[Black "Chandreyee, Hajra"]
[Result "1-0"]
[ECO "B50"]
[WhiteElo "1909"]
[BlackElo "1912"]
[Annotator "RC"]
[PlyCount "153"]
[EventDate "2024.03.24"]
[EventType "swiss"]
[EventCountry "IND"]
[SourceTitle "playchess.com"]
[Source "ChessBase"]
[SourceQuality "1"]
[TimeControl "5400+30"]

1. e4 {[%emt 1:31:00]} c5 {[%emt 0:07:51]} 2. Nf3 {[%emt 0:00:00]} d6 {[%emt 0:00:12]} 3. c3 {[%emt 0:00:00]} Nf6 {[%emt 0:00:05]} 4. h3 {[%emt 0:00:00]} Nc6 {[%emt 0:00:04]} 5. Bd3 {[%emt 0:00:00]} g6 {[%emt 0:00:23]} 6. Bc2 {[%emt 0:00:00]} Bg7 {[%emt 0:00:06]} 7. O-O {[%emt 0:00:00]} O-O {[%emt 0:00:24]} 8. d4 {[%emt 0:00:00]} cxd4 {[%emt 0:00:06]} 9. cxd4 {[%emt 0:00:00]} e5 {[%emt 0:00:07]} 10. Be3 {[%emt 0:00:00]} Re8 {[%emt 0:04:34]} 11. Nc3 {[%emt 0:00:00]} exd4 {[%emt 0:02:21]} 12. Nxd4 {[%emt 0:00:00]} a6 {[%emt 0:09:57]} 13. a3 {[%emt 0:00:00]} Nxd4 {[%emt 0:04:18]} 14. Bxd4 {[%emt 0:00:00]} b5 {[%emt 0:00:24]} 15. Re1 {[%emt 0:00:00]} Bb7 {[%emt 0:00:14]} 16. Qf3 {[%emt 0:00:00]} Nd7 {[%emt 0:06:50]} 17. Bxg7 {[%emt 0:00:00]} Kxg7 {[%emt 0:00:43]} 18. Rad1 {[%emt 0:00:00]} Ne5 {[%emt 0:02:07]} 19. Qg3 {[%emt 0:00:00]} Nc4 {[%emt 0:03:44]} 20. Bb3 {[%emt 0:00:00]} Re5 {[%emt 0:10:48]} 21. Bxc4 {[%emt 0:00:00]} bxc4 {[%emt 0:00:08]} 22. Qe3 {[%emt 0:00:00]} f5 {[%emt 0:20:02]} 23. Qd4 {[%emt 0:00:00]} Qf6 {[%emt 0:00:45]} 24. Qxd6 {[%emt 0:00:00]} fxe4 {[%emt 0:03:42]} 25. Qc7+ {[%emt 0:00:00]} Re7 {[%emt 0:00:08]} 26. Rd7 {[%emt 0:00:00]} Rxd7 {[%emt 0:00:44]} 27. Qxd7+ {[%emt 0:00:00]} Qf7 {[%emt 0:00:12]} 28. Qd4+ {[%emt 0:00:00]} Qf6 {[%emt 0:01:08]} 29. Qxf6+ {[%emt 0:00:00]} Kxf6 {[%emt 0:00:02]} 30. Nxe4+ {[%emt 0:00:00]} Bxe4 {[%emt 0:00:36]} 31. Rxe4 {[%emt 0:00:00]} Rc8 {[%emt 0:00:13]} 32. Kf1 {[%emt 0:00:00]} Kf5 {[%emt 0:01:48]} 33. Re7 {[%emt 0:00:00]} h6 {[%emt 0:01:27]} 34. Ra7 {[%emt 0:00:00]} Rc6 {[%emt 0:00:04]} 35. Ke2 {[%emt 0:00:00]} Ke4 {[%emt 0:00:28]} 36. Kd2 {[%emt 0:00:00]} Kd4 {[%emt 0:00:35]} 37. Rd7+ {[%emt 0:00:00]} Kc5 {[%emt 0:00:38]} 38. f3 {[%emt 0:00:00]} Rb6 {[%emt 0:00:52]} 39. Kc2 {[%emt 0:00:00]} Re6 {[%emt 0:00:08]} 40. Rc7+ {[%emt 0:00:00]} Kb5 {[%emt 0:00:52]} 41. Rd7 {[%emt 0:00:00]} Kc5 {[%emt 0:00:25]} 42. Rc7+ {[%emt 0:00:00]} Kb5 {[%emt 0:00:06]} 43. Kd2 {[%emt 0:00:00]} Re5 {[%emt 0:01:26]} 44. a4+ {[%emt 0:00:00]} Kxa4 {[%emt 0:00:45]} 45. Rc6 {[%emt 0:00:00]} Rg5 {[%emt 0:00:27]} 46. g4 {[%emt 0:22:30]} Kb3 {[%emt 0:20:31]} 47. Rxa6 {[%emt 0:00:00]} Rd5+ {[%emt 0:00:00]} 48. Kc1 {[%emt 0:01:00]} g5 {[%emt 0:00:00]} 49. Rb6+ {[%emt 0:00:00]} Ka4 {[%emt 0:00:00]} 50. Rxh6 {[%emt 0:00:00]} Kb4 {[%emt 0:00:00]} 51. Kc2 {[%emt 0:01:30]} Kc5 {[%emt 0:00:00]} 52. Rf6 {[%emt 0:00:00]} Kd4 {[%emt 0:00:00]} 53. Rf5 {[%emt 0:01:00]} Rd6 {[%emt 0:00:00]} 54. Rxg5 {[%emt 0:00:30]} Rd8 {[%emt 0:00:00]} 55. Rh5 {[%emt 0:00:00]} Rf8 {[%emt 0:00:00]} 56. Rf5 {[%emt 0:00:00]} Rh8 {[%emt 0:00:00]} 57. g5 {[%emt 0:00:00]} Rxh3 {[%emt 0:00:00]} 58. Rf6 {[%emt 0:00:00]} Rh2+ {[%emt 0:00:00]} 59. Kb1 {[%emt 0:00:00]} Rh1+ {[%emt 0:00:51]} 60. Ka2 {[%emt 0:00:00]} Rh2 {[%emt 0:01:37]} 61. Ka3 {[%emt 0:00:00]} Rh3 {[%emt 0:00:10]} 62. Rf4+ {[%emt 0:00:00]} Ke5 {[%emt 0:00:54]} 63. Rxc4 {[%emt 0:00:00]} Rxf3+ {[%emt 0:00:08]} 64. Ka4 {[%emt 0:00:00]} Rg3 {[%emt 0:00:41]} 65. Rc5+ {[%emt 0:00:00]} Kd6 {[%emt 0:00:20]} 66. b4 {[%emt 0:00:00]} Rg4 {[%emt 0:00:11]} 67. Ka5 {[%emt 0:00:00]} Rf4 {[%emt 0:00:36]} 68. Rb5 {[%emt 0:00:00]} Rg4 {[%emt 0:00:10]} 69. Rb6+ {[%emt 0:00:00]} Kc7 {[%emt 0:00:25]} 70. g6 {[%emt 0:00:00]} Rg1 {[%emt 0:00:51]} 71. Rf6 {[%emt 0:00:00]} Kd7 {[%emt 0:00:25]} 72. Kb6 {[%emt 0:00:00]} Ke7 {[%emt 0:00:06]} 73. Rc6 {[%emt 0:00:00]} Rg5 {[%emt 0:00:29]} 74. b5 {[%emt 0:00:00]} Kf8 {[%emt 0:00:12]} 75. Ka6 {[%emt 0:00:00]} Rg1 {[%emt 0:00:07]} 76. b6 {[%emt 0:00:00]} Kg7 {[%emt 0:00:04]} 77. Kb7 {[%emt 0:00:00]} 1-0

[Event "1st Sakatam Open 2024"]
[Site "Guwahati"]
[Date "2024.03.28"]
[Round "10.4"]
[White "Mrinmoy Rajkhowa"]
[Black "Kishan Kumar"]
[Result "0-1"]
[ECO "B90"]
[WhiteElo "1901"]
[BlackElo "1867"]
[Annotator "RC"]
[PlyCount "72"]
[EventDate "2024.03.24"]
[EventType "swiss"]
[EventCountry "IND"]
[SourceTitle "playchess.com"]
[Source "ChessBase"]
[SourceQuality "1"]
[TimeControl "5400+30"]

1. e4 {[%emt 0:00:29]} c5 {[%emt 0:00:02]} 2. Nf3 {[%emt 0:00:05]} d6 {[%emt 0:00:05]} 3. d4 {[%emt 0:00:11]} cxd4 {[%emt 0:00:02]} 4. Nxd4 {[%emt 0:00:06]} Nf6 {[%emt 0:00:02]} 5. Nc3 {[%emt 0:00:06]} a6 {[%emt 0:00:05]} 6. f3 {[%emt 0:00:04]} e5 {[%emt 0:00:03]} 7. Nb3 {[%emt 0:00:04]} Be7 {[%emt 0:00:02]} 8. Be3 {[%emt 0:00:06]} Be6 {[%emt 0:00:06]} 9. Qd2 {[%emt 0:00:04]} h5 {[%emt 0:00:21]} 10. O-O-O {[%emt 0:00:05]} Nbd7 {[%emt 0:00:07]} 11. Kb1 {[%emt 0:00:10]} b5 {[%emt 0:04:04]} 12. h3 {[%emt 0:04:57]} b4 {[%emt 0:06:55]} 13. Nd5 {[%emt 0:02:29]} Bxd5 {[%emt 0:15:48]} 14. exd5 {[%emt 0:00:06]} Nb6 {[%emt 0:04:59]} 15. Na5 {[%emt 0:12:55]} Nbxd5 {[%emt 0:02:30]} 16. Nc6 {[%emt 0:00:27]} Qc7 {[%emt 0:00:39]} 17. Nxb4 {[%emt 0:16:18]} Nxb4 {[%emt 0:02:28]} 18. Qxb4 {[%emt 0:00:06]} O-O {[%emt 0:00:13]} 19. Qc4 {[%emt 0:06:18]} Qd7 {[%emt 0:05:29]} 20. Bg5 {[%emt 0:05:48]} Rfc8 {[%emt 0:01:09]} 21. Qh4 {[%emt 0:02:29]} Qc6 {[%emt 0:13:03]} 22. Bd3 {[%emt 0:04:34]} Rab8 {[%emt 0:01:02]} 23. b3 {[%emt 0:15:34]} d5 {[%emt 0:42:46]} 24. Rhe1 {[%emt 0:03:25]} e4 {[%emt 0:00:00]} 25. fxe4 {[%emt 0:06:35]} dxe4 {[%emt 0:00:00]} 26. c4 {[%emt 0:02:30]} Qa4 {[%emt 0:00:00]} 27. Ka1 {[%emt 0:06:49]} Qa5 {[%emt 0:00:00]} 28. Bd2 {[%emt 0:01:16]} Qe5+ {[%emt 0:00:00]} 29. Kb1 {[%emt 0:00:02]} Ng4 {[%emt 0:00:00]} 30. Qxg4 {[%emt 0:06:43]} hxg4 {[%emt 0:00:00]} 31. Rxe4 {[%emt 0:00:07]} Qc5 {[%emt 0:00:00]} 32. Be3 {[%emt 0:00:17]} Qa3 {[%emt 0:00:00]} 33. Bc1 {[%emt 0:00:20]} Rxb3+ {[%emt 0:00:00]} 34. axb3 {[%emt 0:00:35]} Qxb3+ {[%emt 0:00:00]} 35. Bb2 {[%emt 0:00:14]} Bf6 {[%emt 0:00:00]} 36. Rd2 {[%emt 0:00:17]} Bxb2 {[%emt 0:00:00]} 0-1

[Event "1st Sakatam Open 2024"]
[Site "Guwahati"]
[Date "2024.03.28"]
[Round "10.5"]
[White "Arpan Das"]
[Black "Soumick Bandopadhyay"]
[Result "1-0"]
[ECO "B42"]
[WhiteElo "2374"]
[BlackElo "1834"]
[Annotator "RC"]
[PlyCount "58"]
[EventDate "2024.03.24"]
[EventType "swiss"]
[EventCountry "IND"]
[SourceTitle "playchess.com"]
[Source "ChessBase"]
[SourceQuality "1"]
[TimeControl "5400+30"]

1. e4 {[%emt 0:07:02]} c5 {[%emt 0:00:07]} 2. Nf3 {[%emt 0:00:03]} e6 {[%emt 0:00:05]} 3. d4 {[%emt 0:00:03]} cxd4 {[%emt 0:00:05]} 4. Nxd4 {[%emt 0:00:03]} a6 {[%emt 0:00:06]} 5. Bd3 {[%emt 0:00:06]} Qc7 {[%emt 0:00:06]} 6. O-O {[%emt 0:00:09]} Nf6 {[%emt 0:00:41]} 7. Qe2 {[%emt 0:00:07]} Nc6 {[%emt 0:01:42]} 8. Nxc6 {[%emt 0:00:19]} dxc6 {[%emt 0:01:48]} 9. e5 {[%emt 0:07:43]} Nd7 {[%emt 0:02:19]} 10. f4 {[%emt 0:00:07]} Bc5+ {[%emt 0:00:14]} 11. Kh1 {[%emt 0:01:13]} b5 {[%emt 0:03:22]} 12. Nd2 {[%emt 0:05:15]} Bb7 {[%emt 0:02:40]} 13. c4 {[%emt 0:06:23]} Be7 {[%emt 0:08:56]} 14. Nf3 {[%emt 0:02:24]} g6 {[%emt 0:06:12]} 15. b3 {[%emt 0:05:41]} b4 {[%emt 0:04:46]} 16. Be3 {[%emt 0:01:34]} a5 {[%emt 0:08:02]} 17. Nd2 {[%emt 0:08:48]} O-O {[%emt 0:19:40]} 18. Rfd1 {[%emt 0:02:15]} Nc5 {[%emt 0:02:30]} 19. Bc2 {[%emt 0:02:35]} a4 {[%emt 0:08:25]} 20. Bxc5 {[%emt 0:02:22]} Bxc5 {[%emt 0:28:44]} 21. Ne4 {[%emt 0:00:04]} Be7 {[%emt 0:00:00]} 22. c5 {[%emt 0:00:17]} Ra5 {[%emt 0:00:00]} 23. Qe3 {[%emt 0:00:58]} Ba6 {[%emt 0:00:00]} 24. Rd2 {[%emt 0:03:37]} Qa7 {[%emt 0:00:00]} 25. Rad1 {[%emt 0:01:16]} Bc8 {[%emt 0:00:00]} 26. bxa4 {[%emt 0:02:51]} Kg7 {[%emt 0:00:00]} 27. Qh3 {[%emt 0:00:54]} Bxc5 {[%emt 0:00:00]} 28. Nf6 {[%emt 0:00:18]} h6 {[%emt 0:00:00]} 29. Rd3 {[%emt 0:06:57]} Be7 {[%emt 0:00:00]} 1-0

[Event "1st Sakatam Open 2024"]
[Site "Guwahati"]
[Date "2024.03.28"]
[Round "10.6"]
[White "Ashutosh, Kumar"]
[Black "Subhayan Kundu"]
[Result "0-1"]
[ECO "C01"]
[WhiteElo "1825"]
[BlackElo "2353"]
[Annotator "RC"]
[PlyCount "72"]
[EventDate "2024.03.24"]
[EventType "swiss"]
[EventCountry "IND"]
[SourceTitle "playchess.com"]
[Source "ChessBase"]
[SourceQuality "1"]
[TimeControl "5400+30"]

1. e4 {[%emt 0:00:02]} e6 {[%emt 0:06:51]} 2. d4 {[%emt 0:00:41]} d5 {[%emt 0:00:05]} 3. Bd3 {[%emt 0:00:55]} c5 {[%emt 0:00:07]} 4. exd5 {[%emt 0:02:00]} exd5 {[%emt 0:00:07]} 5. Nf3 {[%emt 0:00:33]} c4 {[%emt 0:00:10]} 6. Be2 {[%emt 0:00:30]} Nf6 {[%emt 0:00:03]} 7. b3 {[%emt 0:00:42]} cxb3 {[%emt 0:00:12]} 8. axb3 {[%emt 0:00:39]} Nc6 {[%emt 0:00:04]} 9. O-O {[%emt 0:01:16]} Bd6 {[%emt 0:00:58]} 10. Nc3 {[%emt 0:01:08]} O-O {[%emt 0:04:04]} 11. Nb5 {[%emt 0:02:28]} Bb8 {[%emt 0:08:22]} 12. c4 {[%emt 0:02:30]} Ne4 {[%emt 0:05:46]} 13. Bb2 {[%emt 0:11:41]} Re8 {[%emt 0:04:44]} 14. cxd5 {[%emt 0:11:46]} Nb4 {[%emt 0:04:52]} 15. d6 {[%emt 0:06:33]} Nxd6 {[%emt 0:00:50]} 16. d5 {[%emt 0:01:59]} Bd7 {[%emt 0:17:31]} 17. Nc3 {[%emt 0:11:24]} a5 {[%emt 0:06:51]} 18. Nd4 {[%emt 0:07:16]} Qf6 {[%emt 0:02:32]} 19. Bf3 {[%emt 0:02:48]} Nf5 {[%emt 0:03:39]} 20. Na4 {[%emt 0:09:31]} Nh4 {[%emt 0:02:57]} 21. g3 {[%emt 0:12:23]} Bh3 {[%emt 0:01:13]} 22. Bh1 {[%emt 0:01:56]} Bxf1 {[%emt 0:00:05]} 23. Qxf1 {[%emt 0:00:32]} Be5 {[%emt 0:00:05]} 24. Qd1 {[%emt 0:11:17]} Nf5 {[%emt 0:00:47]} 25. Nxf5 {[%emt 0:00:00]} Qxf5 {[%emt 0:00:23]} 26. Bxe5 {[%emt 0:00:00]} Rxe5 {[%emt 0:00:29]} 27. d6 {[%emt 0:00:00]} Rd8 {[%emt 0:01:36]} 28. Nb6 {[%emt 0:00:00]} Nc2 {[%emt 0:05:17]} 29. Rc1 {[%emt 0:00:00]} Re1+ {[%emt 0:00:09]} 30. Qxe1 {[%emt 0:00:00]} Nxe1 {[%emt 0:00:03]} 31. Rxe1 {[%emt 0:00:00]} g6 {[%emt 0:00:08]} 32. d7 {[%emt 0:00:49]} Kg7 {[%emt 0:00:20]} 33. Re7 {[%emt 0:00:43]} Qc5 {[%emt 0:00:42]} 34. Nc8 {[%emt 0:00:48]} Rxd7 {[%emt 0:00:06]} 35. Rxd7 {[%emt 0:01:23]} Qc1+ {[%emt 0:00:02]} 36. Kg2 {[%emt 0:01:01]} Qc6+ {[%emt 0:00:02]} 0-1

[Event "1st Sakatam Open 2024"]
[Site "Guwahati"]
[Date "2024.03.28"]
[Round "10.7"]
[White "Adhiraj Mitra"]
[Black "Mishra, Neeraj-Kumar"]
[Result "1/2-1/2"]
[ECO "B44"]
[WhiteElo "1840"]
[BlackElo "2150"]
[Annotator "RC"]
[PlyCount "109"]
[EventDate "2024.03.24"]
[EventType "swiss"]
[EventCountry "IND"]
[SourceTitle "playchess.com"]
[Source "ChessBase"]
[SourceQuality "1"]
[TimeControl "5400+30"]

1. e4 {[%emt 0:00:00]} c5 {[%emt 0:00:33]} 2. Nf3 {[%emt 0:00:05]} e6 {[%emt 0:00:10]} 3. d4 {[%emt 0:00:03]} cxd4 {[%emt 0:00:11]} 4. Nxd4 {[%emt 0:00:03]} Nc6 {[%emt 0:00:43]} 5. Nb5 {[%emt 0:00:15]} d6 {[%emt 0:00:12]} 6. Bf4 {[%emt 0:00:08]} e5 {[%emt 0:00:24]} 7. Be3 {[%emt 0:00:05]} a6 {[%emt 0:00:36]} 8. N5c3 {[%emt 0:00:12]} Be6 {[%emt 0:03:34]} 9. Be2 {[%emt 0:02:33]} Nf6 {[%emt 0:00:54]} 10. Bf3 {[%emt 0:02:31]} Rc8 {[%emt 0:04:35]} 11. a4 {[%emt 0:06:10]} Be7 {[%emt 0:02:52]} 12. O-O {[%emt 0:07:31]} O-O {[%emt 0:00:39]} 13. Kh1 {[%emt 0:03:45]} Nb4 {[%emt 0:10:29]} 14. Qc1 {[%emt 0:06:50]} d5 {[%emt 0:06:09]} 15. exd5 {[%emt 0:01:08]} Nfxd5 {[%emt 0:00:08]} 16. Bxd5 {[%emt 0:00:40]} Nxd5 {[%emt 0:01:28]} 17. Rd1 {[%emt 0:00:32]} Qa5 {[%emt 0:00:16]} 18. Nxd5 {[%emt 0:01:28]} Bxd5 {[%emt 0:00:08]} 19. Qd2 {[%emt 0:02:07]} Qxd2 {[%emt 0:00:32]} 20. Rxd2 {[%emt 0:00:38]} Bc6 {[%emt 0:00:12]} 21. Nc3 {[%emt 0:01:12]} Rfd8 {[%emt 0:02:51]} 22. Rad1 {[%emt 0:03:57]} Rxd2 {[%emt 0:01:27]} 23. Rxd2 {[%emt 0:00:02]} f6 {[%emt 0:01:25]} 24. f3 {[%emt 0:00:25]} Kf7 {[%emt 0:01:20]} 25. Kg1 {[%emt 0:02:14]} Ke6 {[%emt 0:00:16]} 26. Kf2 {[%emt 0:01:01]} Bb4 {[%emt 0:00:34]} 27. Rd3 {[%emt 0:00:08]} Be8 {[%emt 0:00:33]} 28. Bb6 {[%emt 0:02:41]} Bxc3 {[%emt 0:01:11]} 29. Rxc3 {[%emt 0:01:21]} Rxc3 {[%emt 0:00:09]} 30. bxc3 {[%emt 0:00:02]} Bxa4 {[%emt 0:00:06]} 31. Ke2 {[%emt 0:00:11]} Bxc2 {[%emt 0:00:11]} 32. c4 {[%emt 0:00:05]} Kd7 {[%emt 0:01:19]} 33. Bc5 {[%emt 0:00:14]} b5 {[%emt 0:00:56]} 34. cxb5 {[%emt 0:00:06]} axb5 {[%emt 0:00:05]} 35. Kd2 {[%emt 0:00:05]} Bb1 {[%emt 0:00:25]} 36. Bf8 {[%emt 0:01:26]} g6 {[%emt 0:00:08]} 37. Ke3 {[%emt 0:00:52]} Ke6 {[%emt 0:00:07]} 38. f4 {[%emt 0:00:46]} exf4+ {[%emt 0:00:33]} 39. Kxf4 {[%emt 0:00:07]} Kd5 {[%emt 0:00:04]} 40. Bg7 {[%emt 0:00:40]} Ke6 {[%emt 0:00:57]} 41. Bf8 {[%emt 0:02:33]} g5+ {[%emt 0:00:33]} 42. Ke3 {[%emt 0:00:05]} Ke5 {[%emt 0:00:15]} 43. Be7 {[%emt 0:00:32]} h5 {[%emt 0:00:30]} 44. g3 {[%emt 0:01:22]} h4 {[%emt 0:00:49]} 45. Bb4 {[%emt 0:01:09]} hxg3 {[%emt 0:00:48]} 46. hxg3 {[%emt 0:00:05]} f5 {[%emt 0:00:11]} 47. Bc3+ {[%emt 0:00:03]} Kd5 {[%emt 0:00:05]} 48. Bf6 {[%emt 0:00:13]} g4 {[%emt 0:00:24]} 49. Be7 {[%emt 0:01:14]} Kc4 {[%emt 0:00:11]} 50. Bd6 {[%emt 0:00:05]} Kc3 {[%emt 0:03:48]} 51. Be5+ {[%emt 0:00:27]} Kc2 {[%emt 0:01:09]} 52. Bd6 {[%emt 0:00:10]} Ba2 {[%emt 0:00:23]} 53. Kd4 {[%emt 0:00:48]} f4 {[%emt 0:00:09]} 54. gxf4 {[%emt 0:01:44]} g3 {[%emt 0:09:12]} 55. Ke3 {[%emt 0:00:11]} 1/2-1/2

[Event "1st Sakatam Open 2024"]
[Site "Guwahati"]
[Date "2024.03.28"]
[Round "10.8"]
[White "Balkishan, A.."]
[Black "Parambrata Sarkar"]
[Result "1-0"]
[ECO "E49"]
[WhiteElo "2108"]
[BlackElo "1755"]
[Annotator "RC"]
[PlyCount "73"]
[EventDate "2024.03.24"]
[EventType "swiss"]
[EventCountry "IND"]
[SourceTitle "playchess.com"]
[Source "ChessBase"]
[SourceQuality "1"]
[TimeControl "5400+30"]

1. d4 {[%emt 0:07:21]} Nf6 {[%emt 0:00:06]} 2. c4 {[%emt 0:00:03]} e6 {[%emt 0:00:04]} 3. Nc3 {[%emt 0:00:05]} Bb4 {[%emt 0:00:04]} 4. a3 {[%emt 0:00:24]} Bxc3+ {[%emt 0:00:13]} 5. bxc3 {[%emt 0:00:05]} c5 {[%emt 0:00:07]} 6. f3 {[%emt 0:00:14]} d5 {[%emt 0:00:19]} 7. e3 {[%emt 0:00:17]} O-O {[%emt 0:00:24]} 8. cxd5 {[%emt 0:00:07]} exd5 {[%emt 0:00:17]} 9. Bd3 {[%emt 0:00:03]} c4 {[%emt 0:01:53]} 10. Bb1 {[%emt 0:01:03]} Nh5 {[%emt 0:01:04]} 11. Ne2 {[%emt 0:04:27]} Qh4+ {[%emt 0:00:39]} 12. g3 {[%emt 0:00:11]} Qh3 {[%emt 0:00:17]} 13. Kf2 {[%emt 0:00:07]} Nc6 {[%emt 0:00:13]} 14. Ng1 {[%emt 0:02:31]} Qe6 {[%emt 0:00:28]} 15. g4 {[%emt 0:00:09]} Nf6 {[%emt 0:00:25]} 16. Ne2 {[%emt 0:00:46]} Ne7 {[%emt 0:04:09]} 17. h4 {[%emt 0:00:51]} Bd7 {[%emt 0:00:24]} 18. Ng3 {[%emt 0:04:55]} Ne8 {[%emt 0:00:58]} 19. a4 {[%emt 0:01:30]} Nd6 {[%emt 0:00:27]} 20. Ba3 {[%emt 0:00:23]} Rae8 {[%emt 0:01:03]} 21. Re1 {[%emt 0:01:26]} g6 {[%emt 0:03:24]} 22. Ne2 {[%emt 0:01:38]} Ndc8 {[%emt 0:01:45]} 23. Nf4 {[%emt 0:01:12]} Qc6 {[%emt 0:00:14]} 24. Bc2 {[%emt 0:03:01]} f5 {[%emt 0:00:54]} 25. g5 {[%emt 0:00:17]} Kg7 {[%emt 0:00:15]} 26. h5 {[%emt 0:00:15]} Rf7 {[%emt 0:00:47]} 27. Rh1 {[%emt 0:00:36]} Rh8 {[%emt 0:00:30]} 28. Qg1 {[%emt 0:00:51]} Rff8 {[%emt 0:00:30]} 29. Rh4 {[%emt 0:00:14]} Kf7 {[%emt 0:00:47]} 30. Qh2 {[%emt 0:00:11]} Rhg8 {[%emt 0:00:11]} 31. hxg6+ {[%emt 0:01:03]} hxg6 {[%emt 0:00:04]} 32. Rh7+ {[%emt 0:00:29]} Ke8 {[%emt 0:00:06]} 33. a5 {[%emt 0:01:26]} Qb5 {[%emt 0:00:41]} 34. Bb4 {[%emt 0:00:29]} Rf7 {[%emt 0:00:38]} 35. Ba4 {[%emt 0:01:45]} Rxh7 {[%emt 0:00:12]} 36. Qxh7 {[%emt 0:00:04]} Qa6 {[%emt 0:00:07]} 37. Nxd5 {[%emt 0:00:30]} 1-0